[Event "ChessKid Cup Div-I 2023"]
[Site "Online"]
[Date "2023.05.23"]
[Round "2.2"]
[White "Kollars, Dmitrij"]
[Black "Van Foreest, Jorden"]
[Result "0-1"]
[ECO "B45"]
[WhiteElo "2607"]
[BlackElo "2689"]
[Annotator "TA"]
[PlyCount "100"]
[EventDate "2023.05.21"]
[EventType "k.o."]
[EventCountry "NET"]
[SourceTitle "playchess.com"]
[Source "ChessBase"]
[SourceQuality "1"]
[TimeControl "900+3"]

{[%evp 17,100,36,63,77,58,0,0,0,16,-29,108,102,108,108,117,122,94,97,103,-42,-43,-42,-46,-29,-20,-76,-80,-96,-52,-58,-36,-44,-43,-85,-85,-85,-85,-152,-152,-179,-181,-175,-168,-177,-166,-209,-227,-214,-212,-435,-417,-496,-499,-486,-476,-447,-428,-409,-380,-347,-368,-410,-403,-398,-373,-447,-447,-415,-401,-535,-545,-543,-516,-547,-550,-538,-527,-1101,-1101,-29987,-29988,-29988,-1981,-1392,-1205]} 1. e4 {[%emt 0:00:07]} c5 {[%emt 0:00:05]} 2. Nf3 {[%emt 0:00:02]} e6 {[%emt 0:00:09]} 3. d4 {[%emt 0:00:04]} cxd4 {[%emt 0:00:02]} 4. Nxd4 {[%emt 0:00:00]} Nf6 {[%emt 0:00:06]} 5. Nc3 {[%emt 0:00:06]} Nc6 {[%emt 0:00:03]} 6. Nxc6 {[%emt 0:00:55]} bxc6 {[%emt 0:00:02]} 7. e5 {[%emt 0:00:01]} Nd5 {[%emt 0:00:05]} 8. Ne4 {[%emt 0:00:01]} Qc7 {[%emt 0:00:02]} 9. f4 {[%emt 0:00:01]} f5 {[%emt 0:00:04]} 10. exf6 {[%emt 0:00:15] B45: Sicilian Four Knights.} gxf6 {[%emt 0:00:00]} 11. Qh5+ {[%emt 0:00:11]} (11. Bd2 $14) 11... Kd8 $11 {[%emt 0:00:06]} 12. Bd2 {[%emt 0:00:08][%cal Oe4f6] [#] Strongly threatening Nxf6! The position is equal.} Qb6 $146 {[%emt 0:02:23]} (12... Rb8 $5 {[%cal Rb8b2]}) ({Predecessor:} 12... Nxf4 13. Qh4 Ng6 14. Qxf6+ Be7 15. Qc3 d5 16. O-O-O Rb8 17. Ng5 Rf8 18. Nxh7 Rf7 {0-1 Gadimbayli,A (2524)-Mamedyarov,S (2740) Gashimov Memorial Blitz 8th 2022 (18)}) 13. c4 {[%emt 0:02:56]} (13. Nxf6 $5 Qxb2 14. Ba5+ Ke7 15. Nxd5+ cxd5 16. Qe5 $11 (16. Rd1 Bg7 $11)) 13... Qd4 {[%emt 0:00:29]} (13... Qxb2 $11 14. Rd1 Bb4 15. cxd5 exd5) 14. Qe2 $16 {[%emt 0:03:09] [#] 0-0-0 would be deadly.} Ba6 {[%emt 0:03:53]} 15. O-O-O {[%emt 0:02:21] And now Ba5+ would win.} (15. Rd1 {simplifies} Kc8 16. Bc3 Qe3 17. Nxf6 Qxe2+ 18. Bxe2 Nxc3 19. bxc3 d6 20. O-O) 15... Kc8 {[%emt 0:00:38]} 16. Qe1 {[%emt 0:01:19]} Rb8 {[%emt 0:01:20][%csl Gb8][%cal Rd4b2]} 17. Bc3 {[%emt 0:01:47]} (17. cxd5 $2 Qxb2#) 17... Qe3+ {[%emt 0:00:02] [#]} 18. Kc2 {[%emt 0:00:03]} (18. Qxe3 $6 Nxe3 19. Rd2 (19. Bxf6 Rg8 $15) 19... Bxc4 20. Bxc4 Nxc4 $11) ({White must play} 18. Qd2 $1 $16 Qxe4 19. cxd5 {[%mdl 64] Discovered Attack} Bxf1 20. dxe6 Qxe6 21. Rhxf1 (21. Rdxf1 Qxa2 22. Rd1 Rb7 $15)) 18... Qxe1 $15 {[%emt 0:00:30]} 19. Rxe1 {[%emt 0:00:00]} Nxc3 {[%emt 0:00:02]} (19... Nxf4 20. Nxf6 Bb4 21. Bxb4 Rxb4 22. Re4 $16) 20. Nxc3 {[%emt 0:00:00]} h5 {[%emt 0:00:18]} 21. Bd3 {[%emt 0:00:07]} (21. f5 $11) 21... f5 $17 {[%emt 0:00:06]} 22. g3 {[%emt 0:00:07]} c5 {[%emt 0:00:12]} 23. Nb5 {[%emt 0:00:07]} Ra8 {[%emt 0:01:03]} 24. Rhg1 {[%emt 0:00:26]} Bb7 {[%emt 0:00:02]} 25. b3 {[%emt 0:01:00]} a6 {[%emt 0:00:03] Black converts the advantage convincingly.} 26. Nc3 {[%emt 0:00:00]} Bg7 {[%emt 0:00:07][%cal Bf8g7,Bg7f6,Bf6e7][%mdl 32]} 27. Ne2 {[%emt 0:00:19]} (27. Rgf1 $142) 27... Kc7 {[%emt 0:00:08] Black is more active.} 28. a3 {[%emt 0:00:20]} Bc6 {[%emt 0:00:55] A strong pair of Bishops.} 29. Rb1 {[%emt 0:00:04]} Rhb8 {[%emt 0:00:39]} 30. h4 {[%emt 0:00:19]} Bf6 {[%emt 0:00:04]} 31. b4 {[%emt 0:00:05]} Be7 {[%emt 0:00:16][%cal Rc5b4]} 32. Kc3 {[%emt 0:00:08]} Rb6 {[%emt 0:00:00]} 33. Rb3 $2 {[%emt 0:00:06]} (33. bxc5 {might work better.} Rxb1 34. Rxb1) 33... Rab8 $19 {[%emt 0:00:05][%cal Rc5b4]} 34. b5 {[%emt 0:00:06]} axb5 {[%emt 0:00:01]} 35. cxb5 {[%emt 0:00:00]} Bd5 {[%emt 0:00:01] ...Bf6+ is the strong threat.} (35... Bxb5 $2 36. Bxb5 Rxb5 37. Rgb1 Rxb3+ 38. Rxb3 $19) 36. Rbb1 {[%emt 0:00:02]} Bf6+ {[%emt 0:00:02]} (36... Ra8 $2 37. Rgc1 $19) 37. Kd2 {[%emt 0:00:02]} Ra8 {[%emt 0:00:10]} 38. Rgc1 {[%emt 0:00:02]} Kd6 {[%emt 0:00:12]} (38... Rxa3 39. Rxc5+ Kd6 40. Rc2 $19) 39. Nc3 {[%emt 0:00:00]} Rxa3 {[%emt 0:00:00]} 40. Nxd5 {[%emt 0:00:01]} exd5 {[%emt 0:00:00][%cal Be6d5,Bd5d4][%mdl 32]} (40... Kxd5 $2 {perishes.} 41. Rc4 $19) 41. Rd1 {[%emt 0:00:04]} c4 {[%emt 0:00:02]} 42. Bxf5 {[%emt 0:00:03]} Rxg3 {[%emt 0:00:01] White must now prevent ...d4.} 43. Ke2 {[%emt 0:00:00]} d4 {[%emt 0:00:19]} ({Weaker is} 43... Bxh4 44. Be4 $15) 44. Kf2 {[%emt 0:00:02]} Ra3 {[%emt 0:00:03]} 45. Kg2 {[%emt 0:00:05]} Kc5 {[%emt 0:00:37]} ({Stronger than} 45... Bxh4 46. Rxd4+ Kc5 47. Rxd7 $15) 46. Bxd7 {[%emt 0:00:02]} Bxh4 {[%emt 0:00:00]} 47. Rh1 {[%emt 0:00:02]} Rg6+ {[%emt 0:00:04]} 48. Kf1 {[%emt 0:00:02]} Rf3+ {[%emt 0:00:01]} 49. Ke2 {[%emt 0:00:00]} Rxf4 {[%emt 0:00:01]} (49... Rf2+ $142 50. Kd1 c3 51. Bf5 Rgg2 52. Rb3 Bg3 53. Kc1 Bxf4+ 54. Kb1 c2+ 55. Bxc2 Rxc2 56. b6 Kc4 57. Ra3 d3 58. b7 Rb2+ 59. Ka1 Be5 60. Rh4+ Kc5 61. Rc3+ Bxc3 62. Rxh5+ Kd6 63. Rh6+ Ke7 64. Rh7+ Kf8 65. Rh8+ {[%mdl 64] Back Rank} Bxh8 66. b8=Q+ Rxb8#) 50. b6 {[%emt 0:00:03]} Rxb6 {[%emt 0:00:03] Weighted Error Value: White=0.56/Black=0.25 (precise)} 0-1

[Event "ChessKid Cup Div-I 2023"]
[Site "Online"]
[Date "2023.05.23"]
[Round "2.3"]
[White "Caruana, Fabiano"]
[Black "Abdusattorov, Nodirbek"]
[Result "1-0"]
[ECO "C18"]
[WhiteElo "2764"]
[BlackElo "2731"]
[Annotator "TA"]
[PlyCount "113"]
[EventDate "2023.05.21"]
[EventType "k.o."]
[EventCountry "NET"]
[SourceTitle "playchess.com"]
[Source "ChessBase"]
[SourceQuality "1"]
[TimeControl "900+3"]

{[%evp 12,113,0,-12,-1,-14,-12,-10,0,-12,-9,-8,-8,-27,-28,-22,-5,-18,-17,-21,-6,-11,-6,-30,-20,-30,-17,-30,-11,-38,0,0,0,0,0,-7,0,-57,-53,-60,-50,-83,0,-4,-8,-15,0,0,0,0,0,-36,-6,-48,0,0,0,0,0,0,0,0,100,104,247,229,591,591,585,587,543,536,535,524,995,922,1320,1170,1289,1292,29976,29976,29977,29978,29978,29978,29978,29977,29977,29978,29979,29980,29980,29979,29979,29980,29982,29983,29983,29983,29983,29984,29984,29985]} 1. e4 {[%emt 0:00:05]} e6 {[%emt 0:00:09]} 2. d4 {[%emt 0:00:03]} d5 {[%emt 0:00:01]} 3. Nc3 {[%emt 0:00:01]} Bb4 {[%emt 0:00:01]} 4. e5 {[%emt 0:00:02]} c5 {[%emt 0:00:01]} 5. a3 {[%emt 0:00:01]} Bxc3+ {[%emt 0:00:01]} 6. bxc3 {[%emt 0:00:01]} Ne7 {[%emt 0:00:01]} 7. h4 {[%emt 0:00:01]} b6 {[%emt 0:00:03] C18: French: 3 Nc3 Bb4: Main line: 7 h4 and 7 Qg4.} 8. Bb5+ {[%emt 0:00:04]} Bd7 {[%emt 0:00:03]} 9. Bd3 {[%emt 0:00:01]} c4 {[%emt 0:00:22] The position is equal.} 10. Be2 {[%emt 0:00:02]} Ba4 {[%emt 0:00:01]} 11. h5 {[%emt 0:00:02]} h6 {[%emt 0:00:09] [#]} 12. f4 $146 {[%emt 0:01:14]} ({Predecessor:} 12. Nh3 Kd7 13. Nf4 Qg8 14. Bg4 Qh7 15. Ra2 Na6 16. Be3 Nc7 17. Kd2 Kc6 18. Bh3 {0-1 Atabayev,M (2496)-Lugovskoy,M (2401) Moscow op-A 2015 (9)}) 12... Nbc6 {[%emt 0:00:11]} 13. Nf3 {[%emt 0:00:39]} Qd7 {[%emt 0:00:11]} 14. Be3 {[%emt 0:00:03]} O-O-O {[%emt 0:00:02]} 15. g4 {[%emt 0:00:10]} Rdf8 {[%emt 0:00:48]} 16. Qd2 {[%emt 0:00:30]} Kb7 {[%emt 0:00:27]} 17. Kf2 {[%emt 0:00:04]} f6 {[%emt 0:00:36]} 18. Rag1 {[%emt 0:00:42]} Rf7 {[%emt 0:00:35]} 19. Rg3 {[%emt 0:00:38]} Rhf8 {[%emt 0:00:17]} 20. Kg2 {[%emt 0:00:02]} a5 {[%emt 0:00:08]} (20... fxe5 {is interesting.} 21. dxe5 d4 22. Rf1 Bxc2 23. Nxd4 Be4+) 21. Nh4 {[%emt 0:00:26]} Na7 {[%emt 0:01:23]} 22. Bf3 {[%emt 0:01:19][%cal Of4f5]} Nb5 {[%emt 0:00:11]} 23. Ra1 {[%emt 0:00:02]} Ka6 {[%emt 0:00:07]} 24. exf6 {[%emt 0:02:18]} (24. Kh2 $11) 24... Rxf6 {[%emt 0:00:55]} 25. Kh2 {[%emt 0:00:07]} Qd6 {[%emt 0:00:37]} 26. Bg2 {[%emt 0:00:16]} Rxf4 {[%emt 0:00:42]} ({Black should try} 26... g6 $17 {aiming for ...gxh5.} 27. hxg6 Nxg6 28. Nxg6 Rxg6) 27. Bxf4 $11 {[%emt 0:00:03]} Rxf4 {[%emt 0:00:00]} 28. Kh3 {[%emt 0:00:04]} Ng8 {[%emt 0:00:55]} 29. Ng6 {[%emt 0:00:17]} Rf7 {[%emt 0:00:26]} 30. Ne5 {[%emt 0:00:03]} Rf8 {[%emt 0:00:10]} 31. g5 {[%emt 0:00:42]} hxg5 {[%emt 0:00:16]} (31... Ne7 {keeps more tension.} 32. gxh6 gxh6 33. Ng6 Nf5) 32. Rxg5 {[%emt 0:00:00]} (32. Bf3 $5 {[%cal Rg3g5]}) 32... Nf6 {[%emt 0:00:01]} (32... Qc7 $1 $15 {is superior.}) 33. Bf3 $36 {[%emt 0:00:04][%cal Bg2f3,Bf3g4,Bg4e6][%mdl 2080] White has good play.} (33. Rxg7 Nxh5 34. Rh7 Rf5 $17) 33... Nd7 {[%emt 0:00:50] [#] ...Nxe5 would be deadly. Excellent horsemanship.} 34. Bg4 {[%emt 0:00:09]} (34. Rxg7 $2 {perishes.} Nxe5 35. Bd1 Rf1 $19) 34... Nxe5 {[%emt 0:00:21]} 35. Rxe5 {[%emt 0:00:00]} Rf6 {[%emt 0:00:01]} 36. Rae1 {[%emt 0:01:00][%cal Re5e6]} Qxa3 {[%emt 0:00:35]} (36... Nc7 $1 $11 {keeps the balance.}) 37. Rxe6 $16 {[%emt 0:00:59]} ({But not} 37. Bxe6 $6 Qxc3+ 38. Qxc3 Nxc3 $14) 37... Rxe6 {[%emt 0:01:20] This move loses the game for Black.} (37... Rf7 $16 {was called for.}) 38. Bxe6 $18 {[%emt 0:00:01]} Qxc3+ $2 {[%emt 0:01:26] [#]} (38... Qf8 {is more resistant.} 39. Kg3 (39. Bxd5 $2 Qf5+ 40. Kg3 Qxd5 $19) 39... Nc7) 39. Qxc3 {[%emt 0:00:02]} Nxc3 $11 {[%emt 0:00:01][%mdl 4096] Endgame KRB-KBN} 40. Bc8+ {[%emt 0:00:01]} Kb5 {[%emt 0:00:56]} 41. Bd7+ {[%emt 0:00:02]} Kb4 {[%emt 0:00:00]} 42. Bxa4 {[%emt 0:00:01]} Ne4 {[%emt 0:00:05]} 43. Bc6 {[%emt 0:01:11]} Nf6 {[%emt 0:00:07]} 44. Kh4 {[%emt 0:00:22]} Kc3 {[%emt 0:00:33]} 45. Rf1 {[%emt 0:00:07][%cal Of1f6]} Nxh5 {[%emt 0:00:13]} 46. Kxh5 {[%emt 0:00:00] White mates.} Kxd4 {[%emt 0:00:01]} 47. Rf5 {[%emt 0:00:32]} Kc3 {[%emt 0:00:23]} 48. Bxd5 {[%emt 0:00:06]} a4 {[%emt 0:00:04]} 49. Rf3+ {[%emt 0:01:14]} Kb4 {[%emt 0:00:12]} 50. Rf1 {[%emt 0:00:52]} b5 {[%emt 0:00:14]} 51. Rb1+ {[%emt 0:00:02]} Kc5 {[%emt 0:00:03]} 52. Bf7 {[%emt 0:00:10]} b4 {[%emt 0:00:03]} 53. Kg4 {[%emt 0:00:05]} a3 {[%emt 0:00:14]} 54. Kf3 {[%emt 0:00:04]} g5 {[%emt 0:00:04]} 55. Ke3 {[%emt 0:00:10]} g4 {[%emt 0:00:01]} 56. Rg1 {[%emt 0:00:06]} a2 {[%emt 0:00:11]} 57. Ra1 {[%emt 0:00:02] Weighted Error Value: White=0.08 (flawless) /Black=0.39} (57. Rxg4 $2 {loses.} a1=Q 58. Rxc4+ Kb5 $19) 1-0

[Event "ChessKid Cup Div-I 2023"]
[Site "Online"]
[Date "2023.05.23"]
[Round "2.3"]
[White "Van Foreest, Jorden"]
[Black "Kollars, Dmitrij"]
[Result "1-0"]
[ECO "D11"]
[WhiteElo "2689"]
[BlackElo "2607"]
[Annotator "TA"]
[PlyCount "77"]
[EventDate "2023.05.21"]
[EventType "k.o."]
[EventCountry "NET"]
[SourceTitle "playchess.com"]
[Source "ChessBase"]
[SourceQuality "1"]
[TimeControl "900+3"]

{[%evp 9,77,7,53,-8,64,-29,-26,-31,-18,-25,-23,-32,0,-56,-18,-18,-16,-23,-18,-58,-69,-65,-65,-60,-51,-58,-74,-73,-53,-59,-35,-47,-10,-13,27,22,23,12,14,14,16,0,56,44,57,48,57,45,79,30,104,111,115,84,170,99,134,124,214,220,708,689,671,671,878,763,628,621,573,550]} 1. d4 {[%emt 0:00:04]} d5 {[%emt 0:00:06]} 2. c4 {[%emt 0:00:01]} c6 {[%emt 0:00:00]} 3. Nf3 {[%emt 0:00:00]} Nf6 {[%emt 0:00:02]} 4. g3 {[%emt 0:00:01]} dxc4 {[%emt 0:00:31]} 5. Bg2 {[%emt 0:00:03]} Bf5 {[%emt 0:00:01]} (5... b5 $11 {might be stronger.}) 6. Nc3 {[%emt 0:00:35] D11: Slav Defence: 3 Nf3 sidelines and 3...Nf6 4 e3 Bg4.} (6. Nbd2 $14) 6... e6 {[%emt 0:00:04]} (6... Nbd7 $11) 7. O-O {[%emt 0:00:13]} (7. Ne5 $14) 7... Nbd7 $11 {[%emt 0:00:21]} 8. Nh4 {[%emt 0:00:20] Black has an edge.} Bg4 {[%emt 0:00:53]} 9. h3 {[%emt 0:00:18]} Bh5 {[%emt 0:00:02] [#]} 10. b3 $1 $146 {[%emt 0:02:01][%mdl 8] A top novelty.} ({Predecessor:} 10. g4 Bg6 11. Nxg6 hxg6 12. e4 e5 13. g5 Nh5 14. Ne2 Be7 15. h4 b5 16. a4 {0-1 Hansen,E (2609)-Sjugirov,S (2712) Titled Tuesday intern op 06th Dec Early blitz 2022 (11)}) 10... Bb4 {[%emt 0:00:24]} 11. Bd2 {[%emt 0:00:05]} (11. Na4 $11) 11... cxb3 {[%emt 0:00:42]} (11... Nb6 $5 {[%cal Rd8d4]} 12. Na4 Bxd2 13. Qxd2 Nxa4 14. bxa4 g5 $15) 12. Qxb3 {[%emt 0:00:03]} a5 {[%emt 0:00:47]} 13. g4 {[%emt 0:01:28]} Nd5 $1 {[%emt 0:00:34] ...a4 is the strong threat.} 14. Nf3 {[%emt 0:00:15]} (14. gxh5 {is interesting.} a4 15. Qb2 Bxc3 16. Bxc3 Nxc3 17. Qxc3 Qxh4 18. Rab1) 14... Nxc3 {[%emt 0:01:18]} 15. Bxc3 {[%emt 0:00:01]} Bxc3 {[%emt 0:00:00]} 16. Qxc3 {[%emt 0:00:06]} Bg6 {[%emt 0:00:02]} 17. Ne5 {[%emt 0:00:47]} Nxe5 {[%emt 0:01:41]} 18. dxe5 {[%emt 0:00:02]} O-O {[%emt 0:00:01]} 19. Rad1 {[%emt 0:00:34]} Qe7 {[%emt 0:00:02]} 20. Rd6 {[%emt 0:00:11]} Rfd8 {[%emt 0:01:39]} 21. Rfd1 {[%emt 0:00:02]} f6 {[%emt 0:00:14]} 22. Qc5 {[%emt 0:01:07] [#] Threatens to win with Rxd8+.} Rd7 {[%emt 0:00:29]} 23. Qb6 {[%emt 0:00:36]} Rxd6 {[%emt 0:00:05]} 24. exd6 {[%emt 0:00:01]} Qd7 {[%emt 0:00:01]} 25. f4 {[%emt 0:00:12]} e5 {[%emt 0:00:28]} (25... a4 $11) 26. fxe5 {[%emt 0:00:05]} fxe5 {[%emt 0:00:00]} 27. Qc7 $36 {[%emt 0:00:04][%mdl 2048] White is more active.} Rd8 {[%emt 0:00:04]} 28. Qxa5 {[%emt 0:00:03]} Bf7 {[%emt 0:01:10]} 29. Qxe5 {[%emt 0:00:21]} ({White should try} 29. a4 $16) 29... Bxa2 {[%emt 0:00:09] [#]} (29... Qe6 $1 $11 {keeps the balance.} 30. Qa5 Qe3+ 31. Kh2 b6) 30. e4 $1 $16 {[%emt 0:00:01][%cal Be2e4,Be4e5][%mdl 32] White is much more active.} Bb3 {[%emt 0:00:24]} 31. Rd2 {[%emt 0:00:05]} Qe6 {[%emt 0:00:55]} (31... Be6 $16) 32. Qa5 {[%emt 0:00:16]} (32. Qc3 $18) 32... Qd7 {[%emt 0:00:49]} 33. e5 {[%emt 0:00:02] Hoping for Be4.} Re8 {[%emt 0:00:14]} (33... Be6 $16 {was worth a try.} 34. Rb2 Rf8) 34. Rb2 $18 {[%emt 0:00:40]} Bf7 {[%emt 0:00:32]} (34... Qf7 35. Qc7 (35. d7 Qxd7 36. Qc5 Rf8 $17) 35... Qc4) 35. Qc7 {[%emt 0:00:39] White is clearly winning.} Qxc7 {[%emt 0:00:12]} 36. dxc7 {[%emt 0:00:01]} b5 {[%emt 0:00:02]} 37. Bxc6 {[%emt 0:00:33]} Rc8 {[%emt 0:00:01]} 38. Rd2 {[%emt 0:00:03] Rd8+ would kill now.} ({Weaker is} 38. Bxb5 Rxc7 39. Be2 Kf8 $16) 38... Be6 {[%emt 0:00:21]} 39. Bd7 {[%emt 0:00:01] Weighted Error Value: White=0.18 (very precise) /Black=0.28 (precise)} ({Not} 39. Bxb5 Rxc7 40. Rd6 Rc5 $11) 1-0

[Event "ChessKid Cup Div-I 2023"]
[Site "Online"]
[Date "2023.05.23"]
[Round "2.4"]
[White "Abdusattorov, Nodirbek"]
[Black "Caruana, Fabiano"]
[Result "1-0"]
[ECO "E06"]
[WhiteElo "2731"]
[BlackElo "2764"]
[Annotator "TA"]
[PlyCount "105"]
[EventDate "2023.05.21"]
[EventType "k.o."]
[EventCountry "NET"]
[SourceTitle "playchess.com"]
[Source "ChessBase"]
[SourceQuality "1"]
[TimeControl "900+3"]

{[%evp 9,105,4,4,-6,-6,0,-8,-10,16,12,7,0,12,1,0,0,16,20,19,11,15,20,38,20,21,15,11,18,20,15,37,48,153,136,134,118,129,119,291,287,308,308,261,294,310,310,308,307,280,226,223,221,231,233,226,213,240,240,235,204,211,216,216,202,193,191,245,219,260,271,267,263,263,270,288,286,303,283,311,311,304,304,304,304,320,320,320,316,452,318,318,318,320,270,618,611,582,565]} 1. d4 {[%emt 0:00:05]} Nf6 {[%emt 0:00:05]} 2. c4 {[%emt 0:00:02]} e6 {[%emt 0:00:02]} 3. Nf3 {[%emt 0:00:01]} d5 {[%emt 0:00:01]} 4. g3 {[%emt 0:00:04]} Be7 {[%emt 0:00:03]} 5. Bg2 {[%emt 0:00:02]} O-O {[%emt 0:00:01]} 6. Qd3 {[%emt 0:00:05] E06: Closed Catalan: Early deviations.} b6 {[%emt 0:00:13]} 7. cxd5 {[%emt 0:00:03]} Nxd5 {[%emt 0:00:21]} 8. O-O {[%emt 0:00:04] The position is equal.} Bb7 {[%emt 0:00:19]} 9. Nc3 {[%emt 0:00:12]} Nd7 {[%emt 0:01:23]} 10. Nxd5 {[%emt 0:01:01]} exd5 {[%emt 0:00:00]} 11. Bf4 {[%emt 0:00:14]} c5 {[%emt 0:00:15]} 12. b3 {[%emt 0:00:04]} a5 {[%emt 0:00:13] [#]} 13. Rfd1 $146 {[%emt 0:00:21]} ({Predecessor:} 13. a4 Bf6 14. Rfd1 cxd4 15. Nxd4 Nc5 16. Qb1 Re8 17. Ra2 Qd7 18. Nb5 Be5 19. Bxe5 Rxe5 {½-½ Grischuk,A (2777)-Aronian,L (2773) Clutch-ch June rapid 2020 (1.4)}) 13... a4 {[%emt 0:00:30]} 14. Rac1 {[%emt 0:01:06]} axb3 {[%emt 0:00:59]} 15. axb3 {[%emt 0:00:00]} Ra3 {[%emt 0:00:02][%cal Oc5c4]} 16. Qc2 {[%emt 0:00:35]} Re8 {[%emt 0:00:30]} 17. h4 {[%emt 0:01:11]} h6 {[%emt 0:00:27] Dodges Ng5} 18. Qb2 {[%emt 0:00:39]} Ra8 {[%emt 0:00:26]} 19. Ne5 {[%emt 0:00:17]} Bf6 {[%emt 0:02:02]} 20. b4 {[%emt 0:00:17][%cal Rb4c5]} cxb4 {[%emt 0:01:19]} (20... cxd4 $1 $14 21. Ng4 d3 22. Nxf6+ Qxf6 23. Qxf6 Nxf6) 21. Nc6 $16 {[%emt 0:01:03] White is much more active.} Bxc6 {[%emt 0:00:05]} 22. Rxc6 {[%emt 0:00:00][%cal Bc1c6,Bc6c8,Bc8e8][%mdl 32]} Ra5 {[%emt 0:01:01]} 23. Bh3 {[%emt 0:00:41]} Nf8 $2 {[%emt 0:01:25] [#] Loses the game.} (23... Nc5 $16) 24. Rc8 $1 $18 {[%emt 0:00:10]} (24. Qxb4 Ne6 $16) 24... Qe7 {[%emt 0:00:18] [#]} 25. Bd6 $1 {[%emt 0:00:11][%mdl 576] Deflection} Qxd6 {[%emt 0:00:41]} 26. Rxe8 {[%emt 0:00:02]} Ra3 {[%emt 0:00:07]} 27. e3 {[%emt 0:00:38]} g6 {[%emt 0:00:14]} 28. Rb1 {[%emt 0:00:10]} Be7 {[%emt 0:00:01]} 29. Bg2 {[%emt 0:01:22][%cal Bh3g2,Bg2d5,Bd5c4,Bc4f1][%mdl 32]} Qd7 {[%emt 0:00:22] [#]} 30. Rxe7 {[%emt 0:00:11][%mdl 576] Deflection} Qxe7 {[%emt 0:00:00]} 31. Bxd5 {[%emt 0:00:24]} ({Don't play} 31. Qxb4 $6 Qxb4 32. Rxb4 Ra1+ 33. Kh2 Ra2) 31... Ra5 {[%emt 0:00:02]} 32. Bc4 {[%emt 0:00:01]} ({Worse is} 32. Qxb4 Qxb4 33. Rxb4 Rxd5 $17) 32... b5 {[%emt 0:01:29]} 33. Bf1 {[%emt 0:00:26]} (33. Qxb4 Qxb4 34. Rxb4 bxc4 35. Rxc4 Nd7 $17) 33... Ne6 {[%emt 0:00:01]} 34. Qxb4 {[%emt 0:00:01]} Qxb4 {[%emt 0:00:00]} 35. Rxb4 {[%emt 0:00:01][%mdl 4096] Endgame KRB-KRN} Nc7 {[%emt 0:00:01]} 36. Rb1 {[%emt 0:01:03]} Kf8 {[%emt 0:00:02]} 37. Rc1 {[%emt 0:00:18]} Ra7 {[%emt 0:00:03]} (37... Ne8 $142 38. Kg2 Nd6) 38. Rc5 {[%emt 0:00:11]} b4 {[%emt 0:00:17]} 39. Rc4 {[%emt 0:00:20]} Nd5 {[%emt 0:00:03]} 40. Rc8+ {[%emt 0:00:56]} Ke7 {[%emt 0:00:05] [#]} 41. Rb8 $1 {[%emt 0:00:01]} Ra1 {[%emt 0:00:22]} 42. Kg2 {[%emt 0:00:39]} Rc1 {[%emt 0:00:18]} 43. Bd3 {[%emt 0:00:32] Against Rc2} Rc3 {[%emt 0:00:40]} 44. Be4 {[%emt 0:00:46]} Nf6 {[%emt 0:00:01]} 45. Rb7+ {[%emt 0:00:02]} Kf8 {[%emt 0:00:21]} 46. Bf3 {[%emt 0:00:02]} Rc4 {[%emt 0:00:04]} 47. Bd1 {[%emt 0:00:04] And now Bb3 would win.} Ne4 {[%emt 0:00:06]} 48. Bb3 {[%emt 0:00:02]} Rc3 {[%emt 0:00:02]} (48... Nd6 {was called for.} 49. Rb8+ Rc8 50. Rxb4 Rc3) 49. Rxb4 {[%emt 0:00:02]} ({Not} 49. Bxf7 Nd6 50. Rb6 Nxf7 $11) 49... g5 {[%emt 0:00:02]} 50. hxg5 {[%emt 0:00:08]} hxg5 {[%emt 0:00:00]} 51. Rb7 {[%emt 0:00:06]} f6 {[%emt 0:00:03]} (51... Nd6) 52. Bd5 {[%emt 0:00:02]} Nd6 {[%emt 0:00:05]} 53. Rd7 {[%emt 0:00:01] Weighted Error Value: White=0.09 (flawless) /Black=0.27 (precise)} 1-0